fUSD/lending_fUSD_20251109
["ID","MTS","AMOUNT","RATE_DAILY","PERIOD"]
[393451820,1762674632693,-827.0,0.00016,3]
[393451821,1762674632702,-827.0,0.00016,3]
[393451822,1762674632712,-946.28859117,0.00016,3]
[393451823,1762674632721,-660.65,0.00016116,2]
[393451824,1762674632731,-406.7772,0.00016237,2]
[393451825,1762674632739,-2036.16,0.00016275,2]
[393451826,1762674632749,-173.83016709,0.00016386,2]
[393451827,1762674632758,-500.0,0.00016395,2]
[393451828,1762674632767,-500.0,0.00016438,2]
[393451829,1762674632776,-365.29088627,0.00016438,2]
[393451830,1762674632785,-3052.8,0.00016438,2]
[393451831,1762674632795,-1349.06679688,0.00016488,2]
[393451832,1762674632804,-2036.16,0.00016706,2]
[393451833,1762674632814,-250.0,0.0001678,2]
[393451834,1762674632823,-500.0,0.00016885,2]
[393451835,1762674632832,-587.40245327,0.00016885,2]
[393451836,1762674632842,-500.0,0.00016885,2]
[393451837,1762674632851,-500.0,0.00016885,2]
[393451838,1762674632860,-500.0,0.00016885,2]
[393451839,1762674632871,-1000.0,0.00016886,2]
[393451840,1762674632880,-501.16416456,0.00016973,2]
[393451841,1762674632889,-500.0,0.00016973,2]
[393451842,1762674632899,-500.0,0.00016973,2]
[393451843,1762674632909,-402.90304553,0.00016973,2]
[393451844,1762674632919,-500.0,0.00016973,2]
[393451845,1762674632928,-500.90836154,0.00016973,2]
[393451846,1762674632938,-503.42717423,0.00016973,2]
[393451847,1762674632947,-160.2064287,0.00016973,2]
[393451848,1762674632957,-500.0,0.00016973,2]
[393451849,1762674632966,-500.0,0.00016973,2]
[393451850,1762674632978,-588.53559498,0.00016973,2]
[393451851,1762674632988,-151.0,0.00016976,2]
[393451852,1762674632999,-151.0,0.00016976,2]
[393451853,1762674633008,-151.0,0.00016976,2]
[393451854,1762674633018,-151.0,0.00016976,2]
[393451855,1762674633027,-151.0,0.00016976,2]
[393451856,1762674633037,-151.0,0.00016976,2]
[393451857,1762674633047,-151.0,0.00016976,2]
[393451858,1762674633057,-151.0,0.00016976,2]
[393451859,1762674633067,-151.0,0.00016976,2]
[393451860,1762674633076,-151.0,0.00016976,2]
[393451861,1762674633086,-151.0,0.00016976,2]
[393451862,1762674633096,-151.0,0.00016976,2]
[393451863,1762674633106,-151.0,0.00016976,2]
[393451864,1762674633116,-151.0,0.00016976,2]
[393451865,1762674633125,-151.0,0.00016976,2]
[393451866,1762674633136,-151.0,0.00016976,2]
[393451867,1762674633145,-151.0,0.00016976,2]
[393451868,1762674633156,-151.0,0.00016976,2]
[393451869,1762674633166,-151.0,0.00016976,2]
[393451870,1762674633175,-151.0,0.00016976,2]
[393451871,1762674633185,-151.0,0.00016976,2]
[393451872,1762674633195,-151.0,0.00016976,2]
[393451873,1762674633206,-151.0,0.00016976,2]
[393451874,1762674633216,-151.0,0.00016976,2]
[393451875,1762674633226,-151.0,0.00016976,2]
[393451876,1762674633235,-151.0,0.00016976,2]
[393451877,1762674633244,-151.0,0.00016976,2]
[393451878,1762674633254,-151.0,0.00016976,2]
[393451879,1762674633263,-151.0,0.00016976,2]
[393451880,1762674633273,-151.0,0.00016976,2]
[393451881,1762674633283,-151.0,0.00016976,2]
[393451882,1762674633292,-151.0,0.00016976,2]
[393451883,1762674633302,-151.0,0.00016976,2]
[393451884,1762674633312,-151.0,0.00016976,2]
[393451885,1762674633321,-151.0,0.00016976,2]
[393451886,1762674633331,-151.0,0.00016976,2]
[393451887,1762674633340,-151.0,0.00016976,2]
[393451888,1762674633354,-151.0,0.00016976,2]
[393451889,1762674633364,-151.0,0.00016976,2]
[393451890,1762674633374,-151.0,0.00016976,2]
[393451891,1762674633383,-256.55160352,0.00016985,2]
[393451892,1762674633393,-234.16080472,0.00016985,2]
[393451893,1762674633403,-500.0,0.00016985,2]
[393451894,1762674633414,-413.6880912,0.00016985,2]
[393451895,1762674633424,-94058.32642207,0.00016986,2]
[393451896,1762674633439,-333826.07357793,0.00016986,2]
[393451897,1762674633449,-151.79996565,0.00017019,2]
[393451898,1762674633464,-510.0,0.00017119,2]
[393451899,1762674633473,-404.79,0.00017246,2]
[393451900,1762674633483,-500.0,0.00017253,2]
[393451901,1762674633495,-166.66,0.0001732,2]
[393451902,1762674633505,-4732.0,0.00017324,2]
[393451903,1762674633515,-216.30346759,0.00017465,2]
[393451904,1762674633525,-4732.0,0.00017471,2]
[393451905,1762674633537,-178.32,0.00017487,2]
[393451906,1762674633547,-183.00963422,0.0001749,2]
[393451907,1762674633557,-250.0,0.0001749,2]
[393451908,1762674633567,-300.0,0.0001749,2]
[393451909,1762674633577,-300.0,0.0001749,2]
[393451910,1762674633587,-300.0,0.0001749,2]
[393451911,1762674633596,-300.0,0.0001749,2]
[393451912,1762674633607,-300.0,0.0001749,2]
[393451913,1762674633616,-195.0,0.0001749,2]
[393451914,1762674633626,-300.0,0.0001749,2]
[393451915,1762674633635,-300.0,0.0001749,2]
[393451916,1762674633645,-263.0,0.00017492,2]
[393451917,1762674633654,-420.0,0.00017492,2]
[393451918,1762674633665,-420.0,0.00017492,2]
[393451919,1762674633675,-496.71,0.00017517,2]
[393451920,1762674633685,-405.90836484,0.00017521,2]
[393451921,1762674633696,-1000.0,0.00017521,2]
[393451922,1762674633705,-1000.0,0.00017521,2]
[393451923,1762674633715,-504.1974148,0.00017575,2]
[393451924,1762674633732,-4227.8025852,0.00017575,2]
[393451925,1762674633742,-1680.0,0.0001758,2]
[393451926,1762674633752,-250.0,0.00017599,2]
[393451927,1762674633763,-200.0,0.000176,6]
[393451928,1762674633773,-500.0,0.000177,6]
[393451929,1762674633784,-18604.15,0.00017728,2]
[393451930,1762674633794,-6058.76,0.00017728,2]
[393451931,1762674633803,-221.92525619,0.00017783,2]
[393451932,1762674633813,-1736.91150153,0.00017799,2]
[393451933,1762674633825,-763.08849847,0.00017799,2]
[393451934,1762674633835,-1259.28884395,0.000178,2]
[393451935,1762674633851,-774.78560653,0.000178,2]
[393451936,1762674633863,-465.92554952,0.000178,2]
[393451937,1762674633873,-99.07445048,0.000178,2]
[393451938,1762674633890,-1224.52840671,0.000178,2]
[393451939,1762674633900,-443.80642507,0.000178,2]
[393451940,1762674633913,-800.0,0.000178,6]
[393451941,1762674633923,-155.07499807,0.0001783,2]
[393451942,1762674633935,-1255.91437207,0.0001783,2]
[393451943,1762674633994,-749.15726767,0.0001783,2]
[393451944,1762674634005,-1231.20141571,0.0001783,2]
[393451946,1762674637539,-173.83016709,0.00016873,2]
[393451947,1762674637549,-84.90993856,0.0001783,2]
[393451948,1762674637559,-443.80642507,0.0001785,2]
[393451949,1762674637568,-501.87005511,0.00017873,2]
[393451950,1762674637577,-624.20573824,0.00017873,2]
[393451951,1762674637586,-502.59676855,0.00017873,2]
[393451952,1762674637595,-503.9039651,0.00017873,2]
[393451953,1762674637604,-500.0,0.00017873,2]
[393451954,1762674637614,-166.66,0.00017892,2]
[393451955,1762674637623,-967.55939279,0.00017898,2]
[393451956,1762674637661,-1191.72857492,0.00017898,2]
[393451957,1762674637673,-2274.33594372,0.00017898,2]
[393451958,1762674637684,-419.075,0.00017898,2]
[393451959,1762674637695,-147.30108857,0.00017898,2]
[393451960,1762674637705,-5962.8933995,0.000179,2]
[393451974,1762674639744,-1408.96817405,0.0001758,2]
[393451975,1762674639888,-317.87740114,0.0001758,2]
[393451976,1762674639898,-5125.92839859,0.000179,2]
[393451977,1762674639909,-524.16,0.000179,2]
[393451978,1762674639921,-8383.0,0.000179,2]
[393451979,1762674639932,-7545.0,0.000179,2]
[393451991,1762674645124,-456.99168339,0.00016438,2]
[393451992,1762674645135,-7984.84551308,0.000179,2]
[393451993,1762674645247,-537.5813845,0.000179,2]
[393452004,1762674645754,-1601.15353993,0.000179,2]
[393452005,1762674645766,-11651.35184316,0.000179,2]
[393452006,1762674645788,-370.38237906,0.000179,2]
[393452007,1762674645820,-655.9187631,0.000179,2]
[393452008,1762674645854,-52595.11791045,0.000179,2]
[393452339,1762674653449,169.05,0.00026061,120]
[393452340,1762674856817,500.0,0.00014999,2]
[393452341,1762674857047,500.0,0.00014999,2]
[393452342,1762674857278,500.0,0.00014999,2]
[393452343,1762674857551,500.0,0.00014999,2]
[393452344,1762674857779,500.0,0.00014999,2]
[393452345,1762674858015,500.0,0.00014999,2]
[393452346,1762674858411,500.0,0.00014999,2]
[393452347,1762674858471,500.0,0.00014999,2]
[393452348,1762674858700,500.0,0.00014999,2]
[393452349,1762674858943,500.0,0.00014999,2]
[393452350,1762674859184,500.0,0.00014999,2]
[393452351,1762674859424,500.0,0.00014999,2]
[393452352,1762674859812,292.94158803,0.00014999,2]
[393452353,1762674940145,500.0,0.0003913,120]
[393452354,1762674940379,500.0,0.0003913,120]
[393452355,1762674940604,606.71657768,0.0003913,120]
[393452356,1762675232250,-166.66,0.0001576,2]
[393452357,1762675232275,-115.03124999,0.00016092,2]
[393452358,1762675276203,151.0,0.00015869,2]
[393452359,1762675277018,-51.62875001,0.00016092,2]
[393452360,1762675277041,-213.55022846,0.00016258,2]
[393452361,1762675293555,-36.44977154,0.00016258,2]
[393452362,1762675293581,-119.89417956,0.00016424,2]
[393452363,1762675307281,-46.76582044,0.00016424,2]
[393452364,1762675338298,-999.0,0.00016479,3]
[393452365,1762675339198,-230.40058126,0.00016517,2]
[393452366,1762675341662,-195.7916167,0.00016517,2]
[393452367,1762675343924,-302.46887359,0.00016517,2]
[393452368,1762675346551,-68.06892845,0.00016517,2]
[393452369,1762675346577,-96.60225934,0.00016541,2]
[393452370,1762675383898,-220.0,0.000158,2]
[393452371,1762675429272,-150.0,0.00016474,2]
[393452375,1762675536580,-1112.2707894,0.00016492,2]
[393452376,1762675539026,-153.39774066,0.00016541,2]
[393452377,1762675539050,-195.0,0.00016592,2]
[393452378,1762675539078,-104.71324297,0.00016592,2]
[393452379,1762675549035,-221.4657106,0.00016494,2]
[393452380,1762675551529,-189.5842894,0.00016494,2]
[393452382,1762675581918,-1000.0,0.00016,2]
[393452383,1762675586366,1000.0,0.000158,2]
[393452384,1762675596950,-1000.0,0.000164,2]
[393452387,1762675598616,200.16337338,0.00016318,2]
[393452394,1762675658728,-170.68,0.00016389,2]
[393452395,1762675750657,-1000.0,0.00016286,2]
[393452399,1762675832192,-2000.0,0.00016642,2]
[393452400,1762675832203,-166.66,0.00016755,2]
[393452401,1762675832213,-1200.0,0.0001679,2]
[393452402,1762675832223,-300.0,0.0001679,2]
[393452403,1762675832232,-831.65984365,0.0001679,2]
[393452404,1762675832253,-368.34015635,0.0001679,2]
[393452405,1762675832263,-142.93711748,0.0001679,2]
[393452406,1762675832282,-157.06288252,0.0001679,2]
[393452407,1762675832292,-714.9173733,0.00016791,2]
[393452408,1762675832303,-258.38525471,0.00016791,2]
[393452409,1762675832315,-801.98263016,0.00016791,2]
[393452410,1762675832327,-266.14474183,0.00016791,2]
[393452411,1762675832337,-500.0,0.00016791,2]
[393452412,1762675832346,-284.85525817,0.00016791,2]
[393452413,1762675832358,-215.14474183,0.00016791,2]
[393452415,1762675832368,-500.0,0.00016791,2]
[393452417,1762675832378,-724.43654782,0.00016854,2]
[393452418,1762675832391,-3540.24286753,0.00016855,2]
[393452419,1762675832407,-875.88927357,0.00016855,2]
[393452420,1762675832420,-3347.81001858,0.00016855,2]
[393452421,1762675832432,-3548.05906453,0.00016855,2]
[393452423,1762675837694,-2180.13570943,0.00016855,2]
[393452424,1762675837837,-662.671405,0.00016855,2]
[393452425,1762675837848,-1627.4,0.00016855,2]
[393452426,1762675837890,-262.7632554,0.00016855,2]
[393452427,1762675837901,-224.44,0.00016942,2]
[393452428,1762675837910,-151.0,0.00016945,2]
[393452429,1762675837920,-96.42601405,0.00016945,2]
[393452430,1762675837933,-54.57398595,0.00016945,2]
[393452431,1762675837942,-285.446191,0.00016945,2]
[393452432,1762675837952,-550.0,0.00016951,2]
[393452433,1762675837962,-500.0,0.00016951,2]
[393452434,1762675837974,-500.0,0.00016951,2]
[393452435,1762675837983,-500.0,0.00016951,2]
[393452436,1762675837993,-500.0,0.00016951,2]
[393452437,1762675838003,-500.0,0.00016951,2]
[393452438,1762675838012,-500.0,0.00016951,2]
[393452439,1762675838022,-500.0,0.00016951,2]
[393452440,1762675838031,-500.0,0.00016951,2]
[393452441,1762675838041,-109.89238029,0.00016951,2]
[393452442,1762675838054,-390.10761971,0.00016951,2]
[393452443,1762675838064,-500.0,0.00016951,2]
[393452444,1762675838074,-500.0,0.00016951,2]
[393452445,1762675838084,-500.0,0.00016951,2]
[393452446,1762675838093,-500.0,0.00016951,2]
[393452447,1762675838103,-500.0,0.00016951,2]
[393452448,1762675838113,-500.0,0.00016951,2]
[393452449,1762675838123,-500.0,0.00016951,2]
[393452450,1762675838133,-500.0,0.00016951,2]
[393452451,1762675838143,-500.0,0.00016951,2]
[393452452,1762675838154,-364.46153925,0.00016951,2]
[393452453,1762675838166,-114.55592243,0.00016951,2]
[393452454,1762675838176,-500.0,0.00016951,2]
[393452456,1762675838185,-500.0,0.00016951,2]
[393452458,1762675838196,-500.0,0.00016951,2]
[393452459,1762675838205,-500.0,0.00016951,2]
[393452460,1762675838216,-500.0,0.00016951,2]
[393452461,1762675838225,-440.60894457,0.00016953,2]
[393452462,1762675838237,-1069.56105543,0.00016953,2]
[393452463,1762675838247,-999.99,0.00016954,2]
[393452464,1762675838256,-1521.99,0.00016954,2]
[393452465,1762675838266,-866.44412007,0.00016954,2]
[393452466,1762675838278,-5353.2532445,0.00016954,2]
[393452467,1762675838290,-5574.83186308,0.00016954,2]
[393452468,1762675838302,-2217.072792,0.00016954,2]
[393452474,1762675839907,-1513.12898753,0.00016954,2]
[393452475,1762675839920,-2890.52899282,0.00016954,2]
[393452476,1762675839931,-696.92951857,0.00016954,2]
[393452477,1762675839974,-303.94,0.00016954,2]
[393452478,1762675839985,-718.81267108,0.00016954,2]
[393452507,1762675843043,-8280.30781035,0.00016954,2]
[393452508,1762675843054,-3867.38,0.00016955,2]
[393452509,1762675843065,-9999.99,0.00016955,2]
[393452510,1762675843077,-150.99,0.00016955,2]
[393452511,1762675843086,-1071.33214965,0.00016955,2]
[393452513,1762675843306,-6566.90785035,0.00016955,2]
[393452515,1762675843316,-307.2,0.00016955,2]
[393452517,1762675843326,-809.13757621,0.00016955,2]
[393452520,1762675843339,-3999.37242379,0.00016955,2]
[393452522,1762675843349,-9999.99,0.00016955,2]
[393452523,1762675843358,-9548.69920159,0.00016955,2]
[393452526,1762675843370,-451.29079841,0.00016955,2]
[393452528,1762675843379,-1534.44585727,0.00016955,2]
[393452530,1762675843391,-15062.16150128,0.00016955,2]
[393452547,1762675843540,-2650.50439907,0.00016955,2]
[393452550,1762675843555,-358.2378,0.00016955,2]
[393452552,1762675843567,-287.00000021,0.00016955,2]
[393452561,1762675845994,-696.3484332,0.00016955,2]
[393452562,1762675846006,-393.99999998,0.00016955,2]
[393452563,1762675846041,-1317.02737996,0.00016955,2]
[393452566,1762675927062,289.34124632,0.00039125,120]
[393452567,1762675935832,460.0,0.00039125,120]
[393452568,1762675939133,601.67341888,0.00039125,120]
[393452569,1762675939193,460.0,0.00039125,120]
[393452570,1762675947516,434.84640001,0.00039125,120]
[393452571,1762676179273,-2647.0,0.00016459,2]
[393452572,1762676179540,-4706.01,0.00016459,2]
[393452573,1762676347088,-7627.54572738,0.000164,2]
[393452574,1762676347107,-5196.57427262,0.000164,2]
[393452575,1762676365343,460.0,0.00039126,120]
[393452576,1762676450035,1865.12,0.00039125,120]
[393452577,1762676450300,1865.12,0.00039125,120]
[393452578,1762676450530,1865.12,0.00039125,120]
[393452579,1762676450760,1865.12,0.00039125,120]
[393452580,1762676451278,1865.12,0.00039125,120]
[393452581,1762676451366,1865.12,0.00039125,120]
[393452582,1762676451483,1865.12,0.00039125,120]
[393452583,1762676451719,1865.12,0.00039125,120]
[393452584,1762676451946,1865.12,0.00039125,120]
[393452585,1762676452236,1865.12,0.00039125,120]
[393452586,1762676452499,1865.12,0.00039125,120]
[393452587,1762676452733,1865.12,0.00039125,120]
[393452588,1762676452980,1865.12,0.00039125,120]
[393452589,1762676453228,1865.12,0.00039125,120]
[393452590,1762676453457,1865.12,0.00039125,120]
[393452591,1762676453684,1865.12,0.00039125,120]
[393452592,1762676453925,1865.12,0.00039125,120]
[393452593,1762676454154,1865.12,0.00039125,120]
[393452594,1762676454389,1865.12,0.00039125,120]
[393452595,1762676454623,1865.12,0.00039125,120]
[393452596,1762676454857,1865.12,0.00039125,120]
[393452597,1762676455083,1865.12,0.00039125,120]
[393452598,1762676455319,1865.12,0.00039125,120]
[393452599,1762676455546,1865.2932824,0.00039125,120]
[393452600,1762676542964,-221.92525619,0.0001648,2]
[393452601,1762676544667,-152.87,0.00016551,2]
[393452602,1762676544693,-12.48671917,0.00016567,2]
[393452603,1762676573421,-3935.41,0.00016456,2]
[393452604,1762676633815,-227.67797223,0.00016,2]
[393452605,1762676655974,1496.9713408,0.000145,2]
[393452606,1762676659418,207.24,8.134e-05,2]
[393452607,1762676695582,-290.47,0.00015932,2]
[393452608,1762676697882,-255.111705,0.00015948,2]
[393452609,1762676700899,-269.20387397,0.00015948,2]
[393452610,1762676703493,-399.51091829,0.00015948,2]
[393452611,1762676705935,-186.97823871,0.00015948,2]
[393452612,1762676710662,-643.42526403,0.00015948,2]
[393452613,1762676718966,616.35851672,9e-05,2]
[393452614,1762676724503,1019.4760812,0.000108,2]
[393452618,1762676745391,23580.13657224,0.00039125,60]
[393452620,1762676812556,5937.25173144,0.000162,5]
[393452622,1762676826556,1000.0,0.00013699,2]
[393452623,1762676827501,-2579.45682543,0.00015,2]
[393452629,1762676830360,-424.97819808,0.00015,2]
[393452631,1762676831844,-4897.74590417,0.00015,2]
[393452632,1762676869745,204.51819166,0.00015,2]
[393452633,1762676869894,10000.01,0.00015,2]
[393452634,1762676869925,10000.01,0.00015,2]
[393452635,1762676869951,10000.01,0.00015,2]
[393452636,1762676869978,10000.01,0.00015,2]
[393452637,1762676870003,10000.01,0.00015,2]
[393452638,1762676870028,10000.01,0.00015,2]
[393452639,1762676870052,10000.01,0.00015,2]
[393452640,1762676870078,10000.01,0.00015,2]
[393452641,1762676870103,10000.01,0.00015,2]
[393452642,1762676870913,-299.11693874,0.00015,2]
[393452643,1762676876187,-354.72039396,0.00015,2]
[393452644,1762676878550,-253.02582709,0.00015,2]
[393452645,1762676878894,-5455.44586962,0.00015,2]
[393452646,1762676880263,-10000.01,0.00015,2]
[393452647,1762676880356,-10000.01,0.00015,2]
[393452648,1762676880518,-10000.01,0.00015,2]
[393452649,1762676880632,-10000.01,0.00015,2]
[393452650,1762676880774,-10000.01,0.00015,2]
[393452651,1762676880882,-10000.01,0.00015,2]
[393452652,1762676880994,-10000.01,0.00015,2]
[393452653,1762676881140,-10000.01,0.00015,2]
[393452654,1762676881251,-10000.01,0.00015,2]
[393452655,1762676881605,-300.0,0.00014999,2]
[393452656,1762676881630,-97.25377879,0.00015,2]
[393452658,1762676883435,-10000.01,0.00015,2]
[393452659,1762676887193,-195.00000016,0.00015,2]
[393452660,1762676889007,-193.72660967,0.00015,2]
[393452661,1762676891603,-410.75565822,0.00015,2]
[393452662,1762676894048,-300.0,0.00015,2]
[393452663,1762676895775,-166.66,0.00015,2]
[393452664,1762676898291,-207.24434178,0.00015,2]
[393452665,1762676914282,-245.32,0.00015,2]
[393452666,1762676917963,-250.0,0.00015,2]
[393452667,1762676920223,-250.0,0.00015,2]
[393452668,1762676921916,-266.69911595,0.00015,2]
[393452669,1762676926358,-266.99466597,0.00015,2]
[393452670,1762676944980,-377.39465699,0.00015,2]
[393452671,1762676948793,1541.162091,0.00014925,2]
[393452672,1762676949632,-186.7934101,0.00015,2]
[393452673,1762676952015,-154.03410336,0.00015,2]
[393452684,1762676954368,-194.58939095,0.00015,2]
[393452686,1762676957142,-205.81,0.00015,2]
[393452688,1762676962083,-200.0,0.00015,2]
[393452689,1762676964807,-195.0,0.00015,2]
[393452690,1762676966438,-195.0,0.00015,2]
[393452691,1762676968071,-308.50682571,0.00015,2]
[393452692,1762676976105,-224.3735111,0.00015,2]
[393452693,1762676979125,-305.15546868,0.00015,2]
[393452694,1762676982529,-165.24778131,0.00015,2]
[393452695,1762676983946,1206.48648621,0.00014985,2]
[393452696,1762676986604,-314.06323891,0.00015,2]
[393452697,1762676988829,-174.14909326,0.00015,2]
[393452698,1762676991647,-385.24917372,0.00015,2]
[393452699,1762676996805,-185.88806859,0.00015,2]
[393452700,1762677000261,-196.97343739,0.00015,2]
[393452701,1762677003209,-268.29172005,0.00014999,2]
[393452702,1762677010681,-31.70827995,0.00014999,2]
[393452703,1762677010710,-300.0,0.00014999,2]
[393452704,1762677010746,-1200.0,0.00014999,2]
[393452705,1762677010774,-300.0,0.00014999,2]
[393452706,1762677012681,-171.07231122,0.00015,2]
[393452707,1762677016036,-4.29941449,0.00015,2]
[393452708,1762677016064,-157.27830987,0.00015,2]
[393452709,1762677017595,-166.66,0.00015,2]
[393452724,1762677031951,-12908.54113163,0.00015,2]
[393452725,1762677031961,-1639.07,0.00015,2]
[393452726,1762677031970,-195.0,0.00015367,2]
[393452727,1762677031980,-151.0,0.00015733,2]
[393452728,1762677031989,-150.0,0.00015825,2]
[393452729,1762677031999,-195.0,0.0001583,2]
[393452730,1762677032008,-323.83,0.00016288,2]
[393452731,1762677032018,-500.0,0.00016301,2]
[393452732,1762677032028,-381.0,0.00016416,2]
[393452733,1762677032037,-420.0,0.00016416,2]
[393452734,1762677032048,-500.0,0.00016479,2]
[393452735,1762677032058,-300.0,0.00016499,2]
[393452736,1762677032067,-300.0,0.00016499,2]
[393452737,1762677032077,-300.0,0.00016499,2]
[393452738,1762677032086,-440.24952966,0.00016499,2]
[393452739,1762677032096,-1680.0,0.00016499,2]
[393452740,1762677032105,-300.0,0.000165,2]
[393452741,1762677032115,-1624.41764358,0.000165,2]
[393452742,1762677032125,-195.0,0.000165,2]
[393452743,1762677032135,-286.66830049,0.000165,2]
[393452744,1762677032145,-172.4986946,0.000165,2]
[393452745,1762677032156,-195.0,0.000165,2]
[393452746,1762677032166,-250.0,0.00016579,2]
[393452747,1762677032176,-300.0,0.00016591,2]
[393452748,1762677032187,-1260.55,0.00016614,2]
[393452749,1762677032197,-150.0,0.00016614,2]
[393452750,1762677032207,-500.0,0.0001663,2]
[393452751,1762677032219,-1726.84557519,0.00016647,2]
[393452752,1762677032228,-1200.0,0.00016698,2]
[393452754,1762677032239,-550.0,0.00016698,2]
[393452755,1762677032248,-5945.75,0.00016699,2]
[393452758,1762677032259,-166.68,0.00016699,2]
[393452759,1762677032269,-192.28,0.00016712,2]
[393452761,1762677032278,-500.0,0.00016755,2]
[393452763,1762677032288,-500.0,0.00016755,2]
[393452765,1762677032301,-500.0,0.00016755,2]
[393452767,1762677032311,-500.0,0.00016755,2]
[393452769,1762677032320,-500.0,0.00016755,2]
[393452771,1762677032330,-546.93988698,0.00016755,2]
[393452773,1762677032340,-500.0,0.00016755,2]
[393452775,1762677032350,-500.0,0.00016755,2]
[393452777,1762677032363,-500.0,0.00016755,2]
[393452779,1762677032373,-317.23865116,0.00016755,2]
[393452781,1762677032383,-500.0,0.00016755,2]
[393452783,1762677032392,-500.0,0.00016755,2]
[393452785,1762677032403,-1000.0,0.00016756,2]
[393452787,1762677032412,-2500.0,0.00016756,2]
[393452789,1762677032421,-5926.7548,0.00016756,2]
[393452791,1762677032433,-1053.0202,0.00016756,2]
[393452792,1762677032442,-190.17385228,0.0001676,2]
[393452793,1762677032452,-26339.21896777,0.0001676,2]
[393452794,1762677032476,-1825.06357538,0.0001676,2]
[393452795,1762677032494,-766.22784662,0.0001676,2]
[393452796,1762677032506,-848.94109769,0.0001676,2]
[393452797,1762677037809,-171.88220966,0.00016754,2]
[393452798,1762677037819,-850.95939034,0.0001676,2]
[393452799,1762677037923,-1765.51524327,0.0001676,2]
[393452800,1762677037933,-16088.60080787,0.00016767,2]
[393452801,1762677037942,-217.90772383,0.00016767,2]
[393452802,1762677037952,-221.90321254,0.00016773,2]
[393452803,1762677037963,-300.0,0.000168,6]
[393452804,1762677037973,-400.0,0.000168,6]
[393452805,1762677037983,-200.0,0.000168,6]
[393452806,1762677037992,-290.47,0.00016817,2]
[393452807,1762677038002,-819.89,0.00016842,2]
[393452808,1762677038011,-9999.99,0.00016842,2]
[393452809,1762677038021,-23487.75,0.00016842,2]
[393452810,1762677038031,-150.99,0.00016842,2]
[393452811,1762677038041,-499.99,0.00016842,2]
[393452812,1762677038051,-3784.4,0.00016842,2]
[393452813,1762677038061,-3440.9,0.00016842,2]
[393452814,1762677038071,-2757.18,0.00016842,2]
[393452815,1762677038081,-299.99,0.00016842,4]
[393452816,1762677038091,-9999.99,0.00016854,2]
[393452817,1762677038101,-639.58166384,0.00016855,2]
[393452818,1762677038112,-163.91256331,0.00016855,2]
[393452819,1762677038122,-179.58612246,0.00016855,2]
[393452820,1762677038132,-150.99,0.00016855,2]
[393452821,1762677038141,-9999.99,0.00016855,2]
[393452822,1762677038152,-500.0,0.00016855,2]
[393452823,1762677038162,-3879.0268409,0.00016855,2]
[393452824,1762677038172,-500.0,0.00016855,2]
[393452825,1762677038183,-375.88815803,0.00016855,2]
[393452826,1762677038193,-501.0,0.00016855,2]
[393452828,1762677038203,-420000.0,0.00016856,2]
[393452830,1762677038213,-151.0,0.0001686,2]
[393452832,1762677038222,-151.0,0.0001686,2]
[393452834,1762677038232,-151.0,0.0001686,2]
[393452835,1762677038242,-151.0,0.0001686,2]
[393452837,1762677038252,-151.0,0.0001686,2]
[393452838,1762677038262,-151.0,0.0001686,2]